bitfinex-derivatives/quotes_BTCF0:USTF0_20250911
["timestamp","ask_amount","ask_price","bid_price","bid_amount"]
[1757562606616,0.0833,114330.0,114320.0,1.54330127]
[1757562607910,0.0833,114330.0,114320.0,1.33814564]
[1757562609017,0.0833,114330.0,114320.0,1.54330127]
[1757562611322,0.0833,114330.0,114320.0,1.69945261]
[1757562611521,0.0833,114330.0,114320.0,1.49429698]
[1757562612118,0.09624,114330.0,114320.0,1.49429698]
[1757562612518,0.34624,114330.0,114320.0,1.3579856]
[1757562615624,0.35510607,114330.0,114320.0,1.3579856]
[1757562615923,0.35510607,114330.0,114320.0,1.20183426]
[1757562617224,0.35510607,114330.0,114320.0,1.35798253]
[1757562618527,0.34624,114330.0,114320.0,1.35798253]
[1757562620321,0.34624,114330.0,114320.0,1.49429391]
[1757562620521,0.34624,114330.0,114320.0,1.33814564]
[1757562621327,0.34624,114330.0,114320.0,1.49427198]
[1757562621918,0.34624,114330.0,114320.0,1.3579606]
[1757562622721,0.34624,114330.0,114320.0,1.20183426]
[1757562625833,0.36829,114330.0,114320.0,1.20183426]
[1757562626325,0.36829,114330.0,114320.0,1.35795826]
[1757562630438,0.36829,114330.0,114320.0,1.35795537]
[1757562630638,0.36829,114330.0,114320.0,1.22164399]
[1757562630841,0.36829,114330.0,114320.0,1.35795537]
[1757562631327,0.36829,114330.0,114320.0,1.20183426]
[1757562636940,1.16313,114330.0,114320.0,1.20183426]
[1757562638940,0.36829,114330.0,114320.0,1.20183426]
[1757562639140,1.16313,114330.0,114320.0,1.20183426]
[1757562639345,0.91313,114330.0,114320.0,1.20183426]
[1757562640344,0.91313,114330.0,114320.0,0.9292115]
[1757562640643,0.91313,114330.0,114320.0,1.20183426]
[1757562641640,0.91313,114330.0,114320.0,0.9292115]
[1757562641944,0.91313,114330.0,114320.0,1.20183426]
[1757562642343,0.91313,114330.0,114320.0,0.9292115]
[1757562642645,0.91313,114330.0,114320.0,1.35803593]
[1757562643438,0.91313,114330.0,114320.0,1.20183426]
[1757562645944,0.91313,114330.0,114320.0,0.9292115]
[1757562646144,0.91313,114330.0,114320.0,1.20183426]
[1757562646642,0.91313,114330.0,114320.0,0.9292115]
[1757562646846,0.91313,114330.0,114320.0,1.20183426]
[1757562648450,0.11829,114330.0,114320.0,1.20183426]
[1757562648647,0.91309,114330.0,114320.0,1.20183426]
[1757562648951,0.91309,114330.0,114320.0,1.10183426]
[1757562652653,0.11829,114330.0,114320.0,1.10183426]
[1757562652860,0.91305,114330.0,114320.0,1.23814564]
[1757562653057,0.91305,114330.0,114320.0,1.10183426]
[1757562653847,0.91305,114330.0,114320.0,0.8292115]
[1757562654047,0.91305,114330.0,114320.0,1.10183426]
[1757562654261,0.91305,114330.0,114320.0,1.23814564]
[1757562654457,0.91305,114330.0,114320.0,1.10183426]
[1757562654860,0.11829,114330.0,114320.0,1.10183426]
[1757562655057,0.91305,114330.0,114320.0,1.10183426]
[1757562655756,0.11829,114330.0,114320.0,1.10183426]
[1757562655962,0.91305,114330.0,114320.0,1.10183426]
[1757562656162,0.11829,114330.0,114320.0,1.25805066]
[1757562656364,0.91305,114330.0,114320.0,1.25805066]
[1757562657163,0.11829,114330.0,114320.0,1.25805066]
[1757562657362,0.91305,114330.0,114320.0,1.25805066]
[1757562658562,0.91305,114330.0,114320.0,1.10183426]
[1757562660960,0.11829,114330.0,114320.0,1.10183426]
[1757562661263,0.87802,114330.0,114320.0,1.23814564]
[1757562661462,0.892,114330.0,114320.0,1.01438276]
[1757562661662,0.892,114330.0,114320.0,1.10183416]
[1757562663163,0.892,114330.0,114320.0,1.21118332]
[1757562663552,0.892,114330.0,114320.0,1.10183416]
[1757562663960,0.892,114330.0,114320.0,1.25804725]
[1757562664367,0.91498,114330.0,114320.0,1.16720455]
[1757562664761,0.91498,114330.0,114320.0,1.01099146]
[1757562666363,0.91498,114330.0,114320.0,0.92354006]
[1757562667061,0.91498,114330.0,114320.0,1.01099146]
[1757562667862,0.91498,114330.0,114320.0,1.16720455]
[1757562668862,0.91498,114330.0,114320.0,0.80640455]
[1757562669266,0.91498,114330.0,114320.0,1.16720455]
[1757562670267,0.91498,114330.0,114320.0,1.01099146]
[1757562672565,1.16498,114330.0,114320.0,0.74176]
[1757562672771,1.52578,114330.0,114320.0,0.11805611]
[1757562673062,1.52578,114330.0,114320.0,0.20894614]
[1757562673257,1.52578,114330.0,114320.0,0.12271003]
[1757562673458,1.61667003,114330.0,114320.0,0.11805106]
[1757562673870,1.61667003,114330.0,114320.0,0.00874]
[1757562674070,1.61667003,114330.0,114320.0,0.09963003]
[1757562674369,1.61667003,114330.0,114320.0,0.20894729]
[1757562674966,1.52578,114330.0,114320.0,0.20894729]
[1757562675168,1.61667003,114330.0,114320.0,0.20894729]
[1757562677866,1.61667003,114330.0,114320.0,0.11805726]
[1757562678271,1.61667003,114330.0,114320.0,0.00874]
[1757562679273,1.52578,114330.0,114320.0,0.00874]
[1757562679475,1.61667003,114330.0,114320.0,0.00874]
[1757562681272,1.52578,114330.0,114320.0,0.00874]
[1757562681471,1.61667003,114330.0,114320.0,0.00874]
[1757562684581,0.82195003,114330.0,114320.0,0.00874]
[1757562684782,1.61667003,114330.0,114320.0,0.00874]
[1757562686585,1.97747003,114330.0,114320.0,0.00874]
[1757562688282,1.18275003,114330.0,114320.0,0.00874]
[1757562688487,1.97747003,114330.0,114320.0,0.09963003]
[1757562689083,1.88658,114330.0,114320.0,0.09963003]
[1757562689589,1.97747003,114330.0,114320.0,0.09963003]
[1757562691790,1.97747003,114330.0,114320.0,0.00874]
[1757562692991,1.88658,114330.0,114320.0,0.00874]
[1757562693199,1.97747003,114330.0,114320.0,0.00874]
[1757562694894,1.61667003,114330.0,114320.0,0.00874]
[1757562695193,0.82195003,114330.0,114320.0,0.00874]
[1757562695388,1.61663003,114330.0,114320.0,0.00874]
[1757562695694,0.82195003,114330.0,114320.0,0.09963003]
[1757562695898,1.52574,114330.0,114320.0,0.09963003]
[1757562696081,0.91494,114330.0,114320.0,0.21186006]
[1757562696289,0.91494,114330.0,114320.0,1.01943012]
[1757562696893,0.12026,114330.0,114320.0,1.01943012]
[1757562697095,0.91494,114330.0,114320.0,0.91011286]
[1757562698495,0.12026,114330.0,114320.0,1.01922876]
[1757562698794,0.91494,114330.0,114320.0,1.01922876]
[1757562699396,0.91494,114330.0,114320.0,0.76922876]
[1757562701293,0.91494,114330.0,114320.0,0.76011286]
[1757562701294,0.12026,114330.0,114320.0,0.76011286]
[1757562701495,0.9149,114330.0,114320.0,1.01011286]
[1757562704097,0.9149,114330.0,114320.0,1.11924318]
[1757562704793,0.8779,114330.0,114320.0,1.58013321]
[1757562704998,0.89061,114330.0,114320.0,1.53632595]
[1757562705199,0.89061,114330.0,114320.0,1.26709309]
[1757562705497,0.89061,114330.0,114320.0,1.53632635]
[1757562706595,0.89061,114330.0,114320.0,1.17552635]
[1757562706798,0.89061,114330.0,114320.0,1.53632635]
[1757562708000,0.09601,114330.0,114320.0,1.53632635]
[1757562708197,0.89061,114330.0,114320.0,1.53632635]
[1757562708897,0.89061,114330.0,114320.0,1.38011326]
[1757562709198,0.87786,114330.0,114320.0,1.38011326]
[1757562709797,0.89057,114330.0,114320.0,1.38011326]
[1757562713101,0.89057,114330.0,114320.0,1.1983332]
[1757562713306,0.89057,114330.0,114320.0,1.38011326]
[1757562715607,0.89057,114330.0,114320.0,1.38881166]
[1757562715805,0.89057,114330.0,114320.0,1.49784067]
[1757562716006,0.89057,114330.0,114320.0,1.48914227]
[1757562716712,0.89057,114330.0,114320.0,1.38011326]
[1757562718017,0.89053,114330.0,114320.0,1.38011326]
[1757562720419,0.89053,114330.0,114320.0,1.38882687]
[1757562720718,0.89053,114330.0,114320.0,1.38011326]
[1757562721818,0.89049,114330.0,114320.0,1.38011326]
[1757562722015,0.89049,114330.0,114320.0,1.48914932]
[1757562722412,0.89049,114330.0,114320.0,1.30736926]
[1757562722619,0.89049,114330.0,114320.0,1.48914932]
[1757562722812,0.09601,114330.0,114320.0,1.48914932]
[1757562723013,0.82605,114330.0,114320.0,1.48914932]
[1757562723214,0.82605,114330.0,114320.0,1.49782261]
[1757562724420,0.82605,114330.0,114320.0,1.38878655]
[1757562724811,0.89049,114330.0,114320.0,1.38878655]
[1757562725121,0.89049,114330.0,114320.0,1.54499964]
[1757562726126,0.89049,114330.0,114320.0,1.53632635]
[1757562726329,0.89049,114330.0,114320.0,1.62721675]
[1757562727223,0.89049,114330.0,114320.0,1.63585802]
[1757562731027,0.89353,114330.0,114320.0,1.63585802]
[1757562731431,0.09601,114330.0,114320.0,1.63585802]
[1757562731617,0.89341,114330.0,114320.0,1.63585802]
[1757562733428,0.89341,114330.0,114320.0,1.36318756]
[1757562733633,0.89341,114330.0,114320.0,1.35454629]
[1757562733826,0.89341,114330.0,114320.0,1.62721675]
[1757562734730,0.89341,114330.0,114320.0,1.47100366]
[1757562735028,0.89341,114330.0,114320.0,1.62713386]
[1757562735424,0.89341,114330.0,114320.0,1.28968066]
[1757562735630,1.16566,114330.0,114320.0,0.96968066]
[1757562737625,1.16566,114330.0,114320.0,0.6970102]
[1757562737830,1.16566,114330.0,114320.0,0.96968066]
[1757562739528,1.16566,114330.0,114320.0,0.60888066]
[1757562741331,1.16566,114330.0,114320.0,0.45275046]
[1757562742526,1.16502,114330.0,114320.0,0.45275046]
[1757562743022,1.16502,114330.0,114320.0,0.60888066]
[1757562743632,0.36826,114330.0,114320.0,0.60888066]
[1757562743832,1.16498,114330.0,114320.0,0.60888066]
[1757562745930,0.36826,114330.0,114320.0,0.60888066]
[1757562746130,1.16474,114330.0,114320.0,0.45275046]
[1757562746326,1.16474,114330.0,114320.0,0.56201281]
[1757562747339,1.16474,114330.0,114320.0,0.92281281]
[1757562747540,1.16474,114330.0,114320.0,0.81355046]
[1757562747732,1.79821046,114330.0,114320.0,0.11799701]
[1757562747934,1.66187523,114330.0,114320.0,0.11799701]
[1757562748242,1.66187523,114330.0,114320.0,0.14507523]
[1757562750142,1.30079523,114330.0,114320.0,0.28141046]
[1757562750343,1.66159523,114330.0,114320.0,0.28141046]
[1757562750538,0.11826,114330.0,114320.0,0.50200576]
[1757562750738,0.91438,114330.0,114320.0,1.11280576]
[1757562751436,0.91438,114330.0,114320.0,1.22195905]
[1757562752543,0.91438,114330.0,114320.0,1.11280576]
[1757562755046,0.91438,114330.0,114320.0,1.02535046]
[1757562755345,0.91438,114330.0,114320.0,1.13451051]
[1757562756246,0.91438,114330.0,114320.0,0.75184005]
[1757562756446,0.91438,114330.0,114320.0,1.13451051]
[1757562758152,0.91438,114330.0,114320.0,1.02535046]
[1757562759152,0.11826,114330.0,114320.0,1.02535046]
[1757562759353,0.91386,114330.0,114320.0,0.77535046]
[1757562759852,0.11826,114330.0,114320.0,0.77535046]
[1757562760051,0.91378,114330.0,114320.0,0.77535046]
[1757562761053,0.91378,114330.0,114320.0,0.66535046]
[1757562761248,0.91378,114330.0,114320.0,0.79535046]
[1757562761853,0.91378,114330.0,114320.0,0.66535046]
[1757562762054,0.91378,114330.0,114320.0,0.79535046]
[1757562762253,0.91378,114330.0,114320.0,0.90453423]
[1757562763154,0.91378,114330.0,114320.0,0.79535046]
[1757562764552,0.11826,114330.0,114320.0,0.79535046]
[1757562764965,0.91346,114330.0,114320.0,0.79535046]
[1757562766358,0.91346,114330.0,114320.0,0.90454917]
[1757562766749,0.91346,114330.0,114320.0,0.79535046]
[1757562767454,0.91346,114330.0,114320.0,0.90455028]
[1757562769362,0.91346,114330.0,114320.0,0.99200448]
[1757562770862,0.91346,114330.0,114320.0,0.90455028]
[1757562773568,0.91346,114330.0,114320.0,0.79535046]
[1757562774367,0.91298,114330.0,114320.0,0.79535046]
[1757562774564,0.11826,114330.0,114320.0,1.568345]
[1757562774764,0.89106,114330.0,114320.0,1.568345]
[1757562775262,0.89106,114330.0,114320.0,1.45913919]
[1757562775859,0.89106,114330.0,114320.0,1.61526939]
[1757562776355,0.91298,114330.0,114320.0,1.61526939]
[1757562776764,0.91298,114330.0,114320.0,1.45913919]
[1757562780763,0.91298,114330.0,114320.0,1.61526939]
[1757562781673,0.91298,114330.0,114320.0,1.45913919]
[1757562783074,0.91298,114330.0,114320.0,1.2062637]
[1757562783367,0.91298,114330.0,114320.0,1.61526939]
[1757562785176,0.91298,114330.0,114320.0,1.39148066]
[1757562785378,0.91294,114330.0,114320.0,1.39148066]
[1757562785580,0.91294,114330.0,114320.0,1.23535046]
[1757562786478,0.91294,114330.0,114320.0,0.66535046]
[1757562787172,0.91294,114330.0,114320.0,0.39268]
[1757562787475,0.91294,114330.0,114320.0,0.77535046]
[1757562787879,0.91294,114330.0,114320.0,0.93148066]
[1757562788381,0.91294,114330.0,114320.0,0.84059876]
[1757562788680,0.91294,114330.0,114320.0,0.68446856]
[1757562789981,0.91294,114330.0,114320.0,0.77192196]
[1757562790281,0.11826,114330.0,114320.0,1.18192196]
[1757562790580,0.91294,114330.0,114320.0,1.18192196]
[1757562791175,0.91294,114330.0,114320.0,1.33805216]
[1757562792080,0.91294,114330.0,114320.0,1.18192196]
[1757562792881,0.11826,114330.0,114320.0,1.18192196]
[1757562793181,0.91294,114330.0,114320.0,1.18192196]
[1757562793383,0.11826,114330.0,114320.0,1.18192196]
[1757562793782,0.91294,114330.0,114320.0,1.18192196]
[1757562794381,0.11826,114330.0,114320.0,1.18192196]
[1757562794583,0.91294,114330.0,114320.0,1.18192196]
[1757562795185,0.91294,114330.0,114320.0,1.33805216]
[1757562795889,0.91294,114330.0,114320.0,1.18192196]
[1757562798189,0.11826,114330.0,114320.0,1.18192196]
[1757562798388,0.91294,114330.0,114320.0,1.33805216]
[1757562799192,0.91294,114330.0,114320.0,1.18192196]
[1757562801692,0.91294,114330.0,114320.0,1.33805216]
[1757562802490,0.91294,114330.0,114320.0,1.18192196]
[1757562804894,0.91294,114330.0,114320.0,1.33805216]
[1757562806493,0.91294,114330.0,114320.0,1.18192196]
[1757562806793,0.91294,114330.0,114320.0,0.98192196]
[1757562809792,0.91294,114330.0,114320.0,1.13805216]
[1757562811303,0.91294,114330.0,114320.0,0.98192196]
[1757562812904,0.91294,114330.0,114320.0,1.13805216]
[1757562813804,0.91294,114330.0,114320.0,1.05059876]
[1757562818707,0.91294,114330.0,114320.0,0.89446856]
[1757562820104,0.91294,114330.0,114320.0,1.05059876]
[1757562821710,0.91294,114330.0,114320.0,0.69446856]
[1757562822908,0.91286,114330.0,114320.0,0.69446856]
[1757562823406,0.91286,114330.0,114320.0,0.93805216]
[1757562824108,0.91286,114330.0,114320.0,0.78192196]
[1757562826507,0.91286,114330.0,114320.0,0.93805216]
[1757562826709,0.91286,114330.0,114320.0,0.81805216]
[1757562827010,0.91286,114330.0,114320.0,0.93805216]
[1757562827304,0.91286,114330.0,114320.0,0.85059876]
[1757562827505,0.91286,114330.0,114320.0,0.73059876]
[1757562827701,0.91286,114330.0,114320.0,0.86059876]
[1757562831707,0.91286,114330.0,114320.0,0.5488102]
[1757562832004,0.91286,114330.0,114320.0,0.85059876]
[1757562832203,0.91286,114330.0,114320.0,0.69446856]
[1757562833414,0.91286,114330.0,114320.0,0.57446856]
[1757562833615,0.91286,114330.0,114320.0,0.71446856]
[1757562834114,0.91286,114330.0,114320.0,0.39268]
[1757562834317,0.91286,114330.0,114320.0,0.69446856]
[1757562834915,0.91286,114330.0,114320.0,0.57446856]
[1757562835116,0.91286,114330.0,114320.0,0.70446856]
[1757562836612,0.91286,114330.0,114320.0,0.19052856]
[1757562837112,0.91286,114330.0,114320.0,0.34665876]
[1757562837312,0.91286,114330.0,114320.0,0.36773876]
[1757562838618,0.11826,114330.0,114320.0,0.36773876]
[1757562838918,0.91278,114330.0,114320.0,0.47773876]
[1757562839217,0.91278,114330.0,114320.0,0.83853876]
[1757562839817,0.11826,114330.0,114320.0,0.83853876]
[1757562840118,0.91274,114330.0,114320.0,0.72853876]
[1757562840308,0.91274,114330.0,114320.0,0.84853876]
[1757562840918,0.91274,114330.0,114320.0,0.85853876]
[1757562841216,0.91274,114330.0,114320.0,0.84853876]
[1757562841421,0.91274,114330.0,114320.0,0.72853876]
[1757562841623,0.91274,114330.0,114320.0,0.86853876]
[1757562842419,0.91274,114330.0,114320.0,0.5467502]
[1757562842619,0.91274,114330.0,114320.0,0.84853876]
[1757562843114,0.91274,114330.0,114320.0,0.72853876]
[1757562843319,0.11826,114330.0,114320.0,0.86853876]
[1757562843523,0.91274,114330.0,114320.0,0.72853876]
[1757562843712,0.91274,114330.0,114320.0,0.85853876]
[1757562844315,0.91274,114330.0,114320.0,0.5467502]
[1757562844521,0.91274,114330.0,114320.0,0.85853876]
[1757562844917,0.91274,114330.0,114320.0,0.49773876]
[1757562845314,0.91274,114330.0,114320.0,0.85853876]
[1757562846618,0.91274,114330.0,114320.0,0.84853876]
[1757562847118,0.91274,114330.0,114320.0,0.5467502]
[1757562847317,0.91274,114330.0,114320.0,0.83853876]
[1757562847721,0.91274,114330.0,114320.0,0.47773876]
[1757562847918,0.91274,114330.0,114320.0,0.72853876]
[1757562848111,0.91274,114330.0,114320.0,0.5467502]
[1757562848312,0.91274,114330.0,114320.0,0.93945098]
[1757562848613,0.91274,114330.0,114320.0,0.57865098]
[1757562849013,0.91274,114330.0,114320.0,0.42252078]
[1757562849216,0.91274,114330.0,114320.0,0.79332078]
[1757562849825,0.91274,114330.0,114320.0,0.66332078]
[1757562850023,0.91274,114330.0,114320.0,0.43252078]
[1757562850727,0.91274,114330.0,114320.0,0.79332078]
[1757562851923,0.91274,114330.0,114320.0,0.78332078]
[1757562852223,0.91274,114330.0,114320.0,0.57865098]
[1757562852422,0.91274,114330.0,114320.0,0.45865098]
[1757562852620,0.91274,114330.0,114320.0,0.93945098]
[1757562853016,0.91274,114330.0,114320.0,0.81945098]
[1757562853325,0.91274,114330.0,114320.0,0.93945098]
[1757562856529,0.9127,114330.0,114320.0,0.81945098]
[1757562856830,0.9127,114330.0,114320.0,0.93945098]
[1757562861233,0.9127,114330.0,114320.0,0.78332078]
[1757562862627,0.9127,114330.0,114320.0,0.93945098]
[1757562867735,0.11826,114330.0,114320.0,0.93945098]
[1757562867929,0.9127,114330.0,114320.0,1.32945098]
[1757562869234,0.11826,114330.0,114320.0,1.32945098]
[1757562869535,0.9127,114330.0,114320.0,1.32945098]
[1757562871735,0.9127,114330.0,114320.0,1.17332078]
[1757562873830,0.11826,114330.0,114320.0,1.17332078]
[1757562874035,0.91266,114330.0,114320.0,1.32945098]
[1757562882837,0.91266,114330.0,114320.0,1.17332078]
[1757562884240,1.65981039,114330.0,114320.0,0.00874]
[1757562884438,1.52346,114330.0,114320.0,0.43757098]
[1757562884835,1.65981039,114330.0,114320.0,0.43757098]
[1757562885140,1.65981039,114330.0,114320.0,0.39077821]
[1757562886143,1.52346,114330.0,114320.0,0.39077821]
[1757562886440,1.65981039,114330.0,114320.0,0.39077821]
[1757562887842,1.65981039,114330.0,114320.0,0.25442782]
[1757562888338,1.65981039,114330.0,114320.0,0.39077821]
[1757562889741,1.65981039,114330.0,114320.0,0.25442782]
[1757562890440,2.02061039,114330.0,114320.0,0.14509039]
[1757562891844,2.02061039,114330.0,114320.0,0.25442782]
[1757562894650,2.02061039,114330.0,114320.0,0.08307743]
[1757562894844,2.02061039,114330.0,114320.0,0.13635039]
[1757562895149,2.02061039,114330.0,114310.0,0.0001316]
[1757562895349,0.53397039,114320.0,114310.0,0.0001316]
[1757562896458,0.53397039,114320.0,114310.0,0.13648199]
[1757562897760,0.53397039,114320.0,114310.0,0.13748199]
[1757562897761,0.61497039,114320.0,114310.0,0.13748199]
[1757562899257,0.61567039,114320.0,114310.0,0.13748199]
[1757562899560,0.68605514,114320.0,114310.0,0.13748199]
[1757562900556,0.68605514,114320.0,114310.0,0.0011316]
[1757562900759,0.68605514,114320.0,114310.0,0.13748199]
[1757562900760,0.54970475,114320.0,114310.0,0.13748199]
[1757562900960,0.68605514,114320.0,114310.0,0.13748199]
[1757562901363,1.48041514,114320.0,114310.0,0.13748199]
[1757562901962,1.34406475,114320.0,114310.0,0.13748199]
[1757562902164,1.48041514,114320.0,114310.0,0.13748199]
[1757562902665,1.48041514,114320.0,114310.0,0.24664362]
[1757562903865,1.61676553,114320.0,114310.0,0.24664362]
[1757562904267,1.48041514,114320.0,114310.0,0.24664362]
[1757562905263,1.61676553,114320.0,114310.0,0.24664362]
[1757562906966,1.48041514,114320.0,114310.0,0.24664362]
[1757562907266,1.48041514,114320.0,114310.0,0.24764362]
[1757562907660,1.48041514,114320.0,114310.0,0.13848199]
[1757562907962,1.61676553,114320.0,114310.0,0.0021316]
[1757562908167,1.86676553,114320.0,114310.0,0.0021316]
[1757562910467,1.77596307,114320.0,114310.0,0.0021316]
[1757562911969,1.77596307,114320.0,114310.0,1.6e-06]
[1757562912268,0.03682,114310.0,114300.0,0.12290163]
[1757562912469,0.48856916,114310.0,114300.0,0.12290163]
[1757562914470,0.48856916,114310.0,114300.0,0.12490163]
[1757562914867,1.28288916,114310.0,114300.0,0.21585079]
[1757562915270,1.19194,114310.0,114300.0,0.21585079]
[1757562915472,1.28288916,114310.0,114300.0,0.21585079]
[1757562915669,1.19194,114310.0,114300.0,0.21585079]
[1757562915871,1.28288916,114310.0,114300.0,0.21585079]
[1757562917271,1.19194,114310.0,114300.0,0.20811079]
[1757562917773,1.28288916,114310.0,114300.0,0.09894916]
[1757562919481,0.48856916,114310.0,114300.0,0.09894916]
[1757562919776,1.1919,114310.0,114300.0,0.12020916]
[1757562920272,1.1919,114310.0,114300.0,0.32115832]
[1757562920473,0.8176,114310.0,114300.0,1.12366248]
[1757562920679,0.02332,114310.0,114300.0,1.48366248]
[1757562921078,0.8176,114310.0,114300.0,1.59289595]
[1757562921480,0.8176,114310.0,114300.0,1.48366248]
[1757562921983,0.8176,114310.0,114300.0,1.39271332]
[1757562923184,0.81832,114310.0,114300.0,1.39271332]
[1757562923587,0.02404,114310.0,114300.0,1.48366248]
[1757562923774,0.00072,114310.0,114300.0,1.48366248]
[1757562923980,0.79496,114310.0,114300.0,1.63979268]
[1757562925583,0.79496,114310.0,114300.0,1.48366248]
[1757562925982,0.79492,114310.0,114300.0,1.48366248]
[1757562926183,0.79492,114310.0,114300.0,1.63959137]
[1757562926383,0.00072,114310.0,114300.0,1.63959137]
[1757562927883,0.00072,114310.0,114300.0,1.48366248]
[1757562931278,0.00072,114310.0,114300.0,1.63951792]
[1757562931990,0.00072,114310.0,114300.0,1.48366248]
[1757562934292,0.08172,114310.0,114300.0,1.48366248]
[1757562935694,0.08172,114310.0,114300.0,1.49240248]
[1757562936196,0.08172,114310.0,114300.0,1.64817154]
[1757562936997,0.08172,114310.0,114300.0,1.49240248]
[1757562937798,0.08172,114310.0,114300.0,1.64817154]
[1757562938297,0.08172,114310.0,114300.0,1.39817154]
[1757562938597,0.08172,114310.0,114300.0,1.24240248]
[1757562940497,0.08172,114310.0,114300.0,2.03760248]
[1757562941398,0.08172,114310.0,114300.0,1.24240248]
[1757562941599,0.08172,114310.0,114300.0,2.03748248]
[1757562942702,0.08172,114310.0,114300.0,1.24240248]
[1757562948402,0.08172,114310.0,114300.0,1.44755811]
[1757562949504,0.08172,114310.0,114300.0,2.24235811]
[1757562950805,0.08172,114310.0,114300.0,2.03720248]
[1757562952599,0.08172,114310.0,114300.0,2.19334869]
[1757562954202,0.08172,114310.0,114300.0,2.03720248]
[1757562956913,0.08172,114310.0,114300.0,2.24235811]
[1757562958908,0.02365,114330.0,114320.0,0.1227001]
[1757562959110,0.02365,114330.0,114320.0,1.12444926]
[1757562959307,0.03726,114330.0,114320.0,0.94605]
[1757562959507,0.03726,114330.0,114320.0,1.12794832]
[1757562960016,0.03726,114330.0,114320.0,1.23727937]
[1757562960516,0.03726,114330.0,114320.0,1.24601937]
[1757562961415,0.02365,114330.0,114320.0,1.33346947]
[1757562961914,0.02465,114330.0,114320.0,1.22413842]
[1757562962119,0.02465,114330.0,114320.0,1.23295954]
[1757562962320,0.03826,114330.0,114320.0,1.23295954]
[1757562962524,0.002,114330.0,114320.0,1.3239087]
[1757562962822,0.02036,114350.0,114340.0,0.1226848]
[1757562963112,1.03854,114380.0,114370.0,0.02136]
[1757562963318,1.03854,114380.0,114370.0,0.22152693]
[1757562963720,1.03854,114380.0,114370.0,0.11230916]
[1757562964114,1.03854,114380.0,114370.0,0.22152693]
[1757562964320,1.28854,114380.0,114370.0,0.22152693]
[1757562964516,1.29735762,114380.0,114370.0,0.11230916]
[1757562965017,1.36755861,114380.0,114370.0,0.11230916]
[1757562965616,1.36755861,114380.0,114370.0,0.43456022]
[1757562965617,0.39706,114380.0,114370.0,0.43456022]
[1757562965818,0.3608,114430.0,114410.0,0.03525]
[1757562966116,0.38345,114430.0,114420.0,0.03525]
[1757562966312,1.17862,114430.0,114420.0,0.10136]
[1757562966512,1.17862,114430.0,114420.0,0.28325832]
[1757562966819,0.02265,114430.0,114420.0,0.29514832]
[1757562967114,0.02265,114430.0,114420.0,0.74332202]
[1757562967310,0.10108638,114450.0,114440.0,0.03525]
[1757562967513,0.42789398,114450.0,114440.0,0.02136]
[1757562967708,0.03626,114440.0,114430.0,0.11230916]
[1757562967909,0.02269,114450.0,114440.0,0.1226084]
[1757562968108,4e-05,114450.0,114440.0,0.4834084]
[1757562968314,0.03626,114460.0,114450.0,0.02136]
[1757562968515,0.92696916,114460.0,114450.0,0.02136]
[1757562968818,0.83602,114460.0,114450.0,0.02136]
[1757562969314,0.01361,114450.0,114440.0,0.3822916]
[1757562969518,0.03626,114450.0,114440.0,0.47324076]
[1757562969817,0.03626,114450.0,114440.0,0.3822916]
[1757562970013,0.8359,114450.0,114440.0,0.47324076]
[1757562970421,0.92684916,114450.0,114440.0,0.3822916]
[1757562970620,0.8359,114450.0,114440.0,0.3822916]
[1757562970821,0.8359,114450.0,114440.0,0.11244076]
[1757562971115,0.8359,114450.0,114440.0,0.10944076]
[1757562971316,0.8359,114450.0,114440.0,0.3792916]
[1757562971522,0.7994,114450.0,114440.0,0.79048862]
[1757562971823,0.83566,114450.0,114440.0,0.10944076]
[1757562972023,0.83566,114450.0,114440.0,0.10644076]
[1757562972220,0.03626,114450.0,114440.0,0.3762916]
[1757562972417,0.83594,114450.0,114440.0,0.3762916]
[1757562972617,0.83594,114450.0,114440.0,0.28759336]
[1757562972822,0.83594,114450.0,114440.0,0.29632336]
[1757562973025,0.83594,114450.0,114440.0,0.65712336]
[1757562973422,0.83594,114450.0,114440.0,0.66712336]
[1757562974225,0.02265,114450.0,114440.0,0.67606336]
[1757562974425,0.82937,114450.0,114440.0,0.4039616]
[1757562974617,0.84298,114450.0,114440.0,0.3950216]
[1757562974818,0.84298,114450.0,114440.0,0.30632336]
[1757562975227,0.84298,114450.0,114440.0,0.0342216]
[1757562975527,0.84298,114450.0,114440.0,0.30632336]
[1757562975728,0.84298,114450.0,114440.0,0.66712336]
[1757562976123,0.84298,114450.0,114440.0,0.3950216]
[1757562976318,0.84298,114450.0,114440.0,0.66712336]
[1757562976518,0.84298,114450.0,114440.0,0.3950216]
[1757562976714,1.58983088,114450.0,114440.0,0.01873]
[1757562976927,1.45378,114450.0,114440.0,0.00873]
[1757562977122,1.58983088,114450.0,114440.0,0.14578088]
[1757562977321,1.45378,114450.0,114440.0,0.00973]
[1757562977524,1.58983088,114450.0,114440.0,0.00973]
[1757562977725,1.45378,114450.0,114440.0,0.00973]
[1757562977925,1.72588176,114450.0,114440.0,0.00973]
[1757562978321,0.64706,114450.0,114440.0,0.00973]
[1757562978520,1.61200271,114450.0,114440.0,0.00973]
[1757562978725,1.74805359,114450.0,114440.0,0.00973]
[1757562979128,0.03626,114430.0,114420.0,0.13605088]
[1757562979327,0.98119088,114430.0,114420.0,0.13605088]
[1757562979630,0.03626,114420.0,114410.0,0.38216]
[1757562979830,0.03626,114420.0,114410.0,0.64821088]
[1757562980230,0.54512,114420.0,114410.0,1.13553376]
[1757562980525,0.04314183,114450.0,114440.0,0.03525]
[1757562980730,0.85242183,114450.0,114440.0,0.03525]
[1757562980930,0.04314183,114450.0,114440.0,0.03525]
[1757562981131,0.86540183,114450.0,114440.0,0.30735176]
[1757562981430,0.86540183,114450.0,114440.0,0.02136]
[1757562981928,0.86540183,114450.0,114440.0,0.29346176]
[1757562982329,0.05580183,114450.0,114440.0,0.29346176]
[1757562982532,0.86568183,114450.0,114440.0,0.29346176]
[1757562983231,0.86568183,114450.0,114440.0,0.02136]
[1757562983429,0.03473,114440.0,114430.0,0.02293]
[1757562983733,0.84441,114440.0,114430.0,0.15898088]
[1757562983927,1.20521,114440.0,114430.0,0.15898088]
[1757562984234,0.03473,114430.0,114420.0,0.53654088]
[1757562984536,0.02207,114430.0,114420.0,0.54654088]
[1757562985234,0.03473,114430.0,114420.0,0.68259176]
[1757562985436,0.03473,114430.0,114420.0,0.68159176]
[1757562985741,0.03473,114430.0,114420.0,0.39673]